bitfinex/quotes_SOLUSD_20251207
["timestamp","ask_amount","ask_price","bid_price","bid_amount"]
[1765093493110,16.308864,132.15,132.13,4.22105055]
[1765093496528,16.978864,132.15,132.13,4.22105055]
[1765093497127,16.308864,132.15,132.13,4.22105055]
[1765093498529,24.54619704,132.15,132.13,4.22105055]
[1765093498733,0.67,132.14,132.11,3.50105055]
[1765093499031,0.67,132.14,132.11,4.16105055]
[1765093499236,12.49105055,132.14,132.1,0.1]
[1765093499636,19.64732886,132.13,132.1,3.60105055]
[1765093499927,0.72,132.13,132.1,3.60105055]
[1765093500131,0.72,132.12,132.1,3.60105055]
[1765093500512,8.28898842,132.12,132.1,3.60105055]
[1765093501233,8.28898842,132.12,132.1,0.1]
[1765093505833,15.13932436,132.13,132.11,0.71]
[1765093506037,8.28842406,132.13,132.1,4.31105055]
[1765093506432,0.72,132.12,132.1,4.31105055]
[1765093506735,8.28842406,132.13,132.1,4.31105055]
[1765093507118,7.56842406,132.13,132.1,0.81]
[1765093507317,0.72,132.12,132.1,0.81]
[1765093510569,7.56842406,132.13,132.1,0.81]
[1765093510865,7.56842406,132.13,132.1,4.31105055]
[1765093510866,8.28842406,132.13,132.1,4.31105055]
[1765093511370,8.28842406,132.13,132.1,0.81]
[1765093511949,7.56842406,132.13,132.11,0.71]
[1765093513372,16.61042562,132.14,132.11,0.71]
[1765093513373,15.88773455,132.14,132.11,0.71]
[1765093513756,8.32,132.14,132.11,8.27925723]
[1765093514161,9.04,132.14,132.11,7.56925723]
[1765093514464,0.72,132.13,132.11,0.71]
[1765093514670,0.72,132.13,132.1,0.81]
[1765093515772,8.28840661,132.13,132.1,0.81]
[1765093517170,7.56840661,132.13,132.1,0.81]
[1765093517375,0.72,132.12,132.1,0.1]
[1765093517572,8.28840661,132.13,132.1,0.81]
[1765093517751,0.72,132.12,132.1,0.1]
[1765093517948,0.72,132.12,132.1,0.81]
[1765093518574,19.36043498,132.13,132.1,0.81]
[1765093519361,8.28840661,132.13,132.1,0.81]
[1765093522185,15.85896085,132.13,132.1,0.81]
[1765093524175,0.66,132.12,132.1,0.81]
[1765093524796,15.79896085,132.13,132.1,0.81]
[1765093525670,8.22840661,132.13,132.1,0.81]
[1765093527190,23.45844345,132.14,132.1,8.37990356]
[1765093527372,15.88788921,132.14,132.1,8.37990356]
[1765093527571,16.54788921,132.14,132.11,0.71]
[1765093527965,15.88788921,132.14,132.11,0.71]
[1765093528168,0.66,132.13,132.11,0.71]
[1765093528478,16.54788921,132.14,132.11,0.71]
[1765093528673,0.66,132.13,132.11,0.71]
[1765093529587,16.54788921,132.14,132.11,0.71]
[1765093529882,0.66,132.13,132.1,8.37990356]
[1765093530184,0.66,132.13,132.11,0.71]
[1765093531787,8.32,132.14,132.11,0.71]
[1765093531968,8.98,132.14,132.11,8.27940798]
[1765093532299,8.98,132.14,132.11,10.52094426]
[1765093532500,16.54775366,132.14,132.12,0.71]
[1765093533670,0.66,132.13,132.11,0.71]
[1765093534182,2.90153628,132.13,132.1,0.1]
[1765093534366,8.32,132.12,132.1,0.1]
[1765093534567,8.98,132.12,132.1,0.1]
[1765093535291,8.98,132.12,132.1,0.81]
[1765093535591,16.54901853,132.12,132.1,0.81]
[1765093536168,0.5,132.11,132.1,0.81]
[1765093537989,8.0694497,132.11,132.1,0.1]
[1765093538193,8.7294497,132.11,132.1,0.1]
[1765093541674,10.97098598,132.11,132.1,0.1]
[1765093542197,26.9626027,132.11,132.1,0.1]
[1765093555710,24.72106642,132.11,132.1,0.1]
[1765093555894,26.9626027,132.11,132.1,0.1]
[1765093565322,26.9626027,132.11,132.1,1e-08]
[1765093575852,35.92874782,132.11,132.1,1e-08]
[1765093576432,16.308864,132.08,132.07,0.1]
[1765093576631,26.87040028,132.08,132.07,0.1]
[1765093576832,27.58040028,132.08,132.07,0.1]
[1765093577147,37.39689363,132.08,132.07,0.1]
[1765093578352,38.66197521,132.08,132.07,0.1]
[1765093578654,46.23314419,132.08,132.07,0.1]
[1765093579846,103.0169116,132.08,132.0,3.58852795]
[1765093580035,3.50661786,132.05,132.04,0.72]
[1765093580217,11.82661786,132.05,132.04,0.72]
[1765093580425,26.49465272,132.05,132.04,0.72]
[1765093581140,22.98803486,132.05,132.04,0.72]
[1765093581330,24.628864,132.05,132.04,0.72]
[1765093581940,111.87187815,132.07,132.04,0.72]
[1765093582148,128.18074215,132.07,132.04,0.72]
[1765093585328,123.22412021,132.11,132.06,3.50661786]
[1765093585549,8.32,132.1,132.06,3.50661786]
[1765093585741,8.32,132.1,132.07,0.65]
[1765093585942,24.628864,132.1,132.07,0.65]
[1765093586336,15.89037493,132.1,132.07,0.65]
[1765093586743,32.19923893,132.1,132.07,0.65]
[1765093587449,0.5,132.09,132.07,0.65]
[1765093588134,32.19923893,132.1,132.07,4.15661786]
[1765093588563,32.19923893,132.1,132.08,0.65]
[1765093589349,32.19923893,132.1,132.08,4.15661786]
[1765093589350,16.308864,132.1,132.08,4.15661786]
[1765093589526,16.308864,132.1,132.09,3.50661786]
[1765093589722,16.308864,132.1,132.09,4.15661786]
[1765093590250,104.3,132.11,132.09,4.15661786]
[1765093590455,16.308864,132.11,132.1,0.65]
[1765093593833,16.308864,132.11,132.1,4.15661786]
[1765093594052,23.46075797,132.13,132.1,4.15661786]
[1765093594360,23.46075797,132.13,132.11,0.65]
[1765093594655,0.5,132.12,132.11,0.65]
[1765093594854,0.5,132.12,132.11,4.15661786]
[1765093595237,120.18726953,132.15,132.11,4.15661786]
[1765093595438,104.3,132.15,132.12,4.15661786]
[1765093595745,8.32,132.19,132.14,11.07407587]
[1765093595938,32.19868535,132.19,132.16,3.50661786]
[1765093596136,24.628864,132.19,132.16,3.50661786]
[1765093596363,24.628864,132.19,132.13,0.65]
[1765093596364,3.50661786,132.17,132.13,0.65]
[1765093596538,8.32,132.16,132.13,3.50661786]
[1765093596743,8.32,132.18,132.14,4.15661786]
[1765093597242,24.628864,132.18,132.15,0.65]
[1765093597441,24.628864,132.18,132.15,4.15661786]
[1765093597442,8.32,132.18,132.15,4.15661786]
[1765093597631,32.19442386,132.18,132.16,0.65]
[1765093598646,24.628864,132.18,132.16,0.65]
[1765093598956,32.19435838,132.18,132.16,0.65]
[1765093599333,16.308864,132.18,132.16,0.65]
[1765093600033,23.87432401,132.18,132.16,0.65]
[1765093603051,27.38094187,132.18,132.16,0.65]
[1765093603756,4.18661786,132.17,132.14,0.65]
[1765093603931,3.50661786,132.15,132.14,0.65]
[1765093605856,11.75377639,132.15,132.12,0.65]
[1765093606058,43.47391885,132.15,132.12,0.65]
[1765093606250,3.50661786,132.13,132.12,0.65]
[1765093607849,11.0749218,132.13,132.12,0.65]
[1765093612140,7.56830394,132.13,132.12,0.65]
[1765093613745,11.0749218,132.13,132.12,0.65]
[1765093619057,19.39447486,132.14,132.12,0.65]
[1765093620674,20.11447486,132.14,132.12,0.65]
[1765093620865,3.50661786,132.13,132.11,0.66]
[1765093621261,28.85548186,132.12,132.09,0.66]
[1765093621579,3.50661786,132.11,132.08,0.66]
[1765093621777,3.50661786,132.1,132.08,0.66]
[1765093621981,28.13548186,132.1,132.08,0.66]
[1765093622182,3.50661786,132.09,132.08,0.66]
[1765093623382,11.79721366,132.09,132.06,0.66]
[1765093623559,11.07721366,132.09,132.06,0.66]
[1765093624261,11.79721366,132.09,132.06,0.66]
[1765093624461,3.50661786,132.08,132.06,0.66]
[1765093624879,11.79721366,132.09,132.06,0.66]
[1765093625487,11.07721366,132.09,132.06,0.66]
[1765093625793,43.27888761,132.1,132.06,0.66]
[1765093626095,35.70562942,132.1,132.06,0.66]
[1765093626579,0.5,132.09,132.06,8.2322904]
[1765093626893,0.5,132.09,132.07,3.50661786]
[1765093627204,0.5,132.09,132.07,4.16661786]
[1765093627359,0.5,132.09,132.08,0.66]
[1765093627782,8.32,132.12,132.08,4.16661786]
[1765093628174,8.32,132.12,132.09,0.66]
[1765093628794,131.68420906,132.13,132.09,8.23048166]
[1765093629171,9.04,132.14,132.09,8.23048166]
[1765093629172,8.32,132.14,132.1,4.16661786]
[1765093629385,8.32,132.14,132.11,0.66]
[1765093630289,8.32,132.14,132.11,8.22944759]
[1765093630482,8.32,132.14,132.12,0.66]
[1765093631288,23.8762113,132.15,132.12,0.66]
[1765093633698,23.8762113,132.15,132.12,4.16661786]
[1765093633879,23.8762113,132.15,132.12,0.66]
[1765093634071,16.308864,132.15,132.12,8.22862973]
[1765093634897,16.308864,132.14,132.13,0.66]
[1765093637008,8.32,132.16,132.13,8.22830394]
[1765093637213,16.308864,132.14,132.13,8.22830394]
[1765093637425,16.308864,132.14,132.13,7.56830394]
[1765093637899,16.308864,132.14,132.13,8.22830394]
[1765093638410,10.56045589,132.16,132.13,8.22830394]
[1765093638609,26.86931989,132.16,132.14,0.66]
[1765093639324,24.628864,132.16,132.14,0.66]
[1765093640242,35.15607797,132.16,132.14,0.66]
[1765093640530,34.43607797,132.16,132.14,0.66]
[1765093641929,32.19562208,132.16,132.14,0.66]
[1765093642444,24.628864,132.16,132.14,0.66]
[1765093645423,104.3,132.18,132.14,8.22753193]
[1765093645627,16.308864,132.16,132.15,0.7]
[1765093646123,128.17430542,132.18,132.15,2.94045589]
[1765093646323,128.17430542,132.18,132.15,0.7]
[1765093646526,128.17430542,132.18,132.16,0.7]
[1765093647244,104.3,132.18,132.16,0.7]
[1765093647626,32.89394958,132.19,132.16,0.7]
[1765093648336,32.19394958,132.19,132.16,0.7]
[1765093649654,32.19394958,132.19,132.16,8.26656932]
[1765093649655,16.308864,132.19,132.16,8.26656932]
[1765093649858,16.308864,132.19,132.16,10.50702521]
[1765093650034,16.308864,132.19,132.17,0.7]
[1765093653162,7.56391597,132.21,132.17,8.26600978]
[1765093653357,7.56391597,132.21,132.17,10.50646567]
[1765093653540,7.56391597,132.21,132.18,0.7]
[1765093655069,8.26391597,132.21,132.18,0.7]
[1765093656168,0.7,132.2,132.16,10.5068219]
[1765093656374,0.7,132.2,132.16,9.8068219]
[1765093656571,9.80437186,132.21,132.17,8.26562503]
[1765093656756,8.26391597,132.21,132.17,8.26562503]
[1765093656944,8.26391597,132.21,132.18,0.7]
[1765093657582,139.43259822,132.22,132.18,8.26531327]
[1765093657945,139.43259822,132.22,132.19,0.7]
[1765093658576,0.7,132.21,132.19,0.7]
[1765093661768,136.49214233,132.22,132.19,0.7]
[1765093662078,139.43259822,132.22,132.19,0.7]
[1765093662775,138.73259822,132.22,132.19,0.7]
[1765093662974,0.7,132.21,132.19,0.7]
[1765093663679,0.7,132.21,132.19,8.26459895]
[1765093663878,0.7,132.21,132.19,0.7]
[1765093666286,136.49204351,132.22,132.19,0.7]
[1765093666585,139.4324994,132.22,132.19,8.26482488]
[1765093667361,0.7,132.21,132.19,8.26482488]
[1765093668085,136.49204351,132.22,132.19,8.26482488]
[1765093668266,128.928864,132.22,132.2,0.7]
[1765093668667,25.328864,132.22,132.2,0.7]
[1765093668972,25.328864,132.22,132.18,26.47904372]
[1765093669180,27.56931989,132.22,132.19,0.7]
[1765093669384,0.7,132.21,132.19,0.7]
[1765093670590,25.318864,132.22,132.19,8.26471311]
[1765093670883,0.69,132.21,132.19,8.26471311]
[1765093671084,26.86931989,132.22,132.19,8.26471311]
[1765093671260,27.55931989,132.22,132.19,7.56471311]
[1765093671462,0.69,132.21,132.19,8.28471311]
[1765093671882,27.55931989,132.22,132.19,8.28471311]
[1765093672665,26.86931989,132.22,132.19,8.28471311]
[1765093673005,0.69,132.21,132.19,8.28471311]
[1765093673184,25.318864,132.22,132.2,0.72]
[1765093674798,25.298864,132.22,132.2,0.68]
[1765093676204,24.628864,132.22,132.2,0.68]
[1765093677011,25.298864,132.22,132.2,0.68]
[1765093679005,24.628864,132.22,132.2,0.68]
[1765093681122,25.298864,132.22,132.2,0.68]
[1765093681737,0.67,132.21,132.18,8.24535748]
[1765093682020,0.67,132.21,132.18,2.92045589]
[1765093682403,32.19221406,132.22,132.19,0.68]
[1765093682597,0.67,132.21,132.19,0.68]
[1765093683728,32.86221406,132.22,132.19,0.68]
[1765093684226,0.67,132.21,132.19,0.68]
[1765093686129,32.86221406,132.22,132.19,0.68]
[1765093687219,0.67,132.21,132.19,0.68]
[1765093688046,0.67,132.21,132.18,10.4858781]
[1765093688249,0.67,132.21,132.19,0.68]
[1765093689757,32.19221406,132.22,132.19,0.68]
[1765093689939,32.86221406,132.22,132.19,0.68]
[1765093690144,25.298864,132.22,132.19,0.68]
[1765093690353,25.298864,132.22,132.19,10.48525436]
[1765093693744,25.298864,132.22,132.19,8.24479847]
[1765093695354,32.862023,132.22,132.19,8.24479847]
[1765093701364,32.862023,132.22,132.2,0.69]
[1765093701673,25.298864,132.22,132.19,8.25479847]
[1765093706974,25.298864,132.22,132.2,0.69]
[1765093709081,24.628864,132.22,132.2,0.69]
[1765093710172,25.278864,132.22,132.2,0.69]
[1765093710365,25.278864,132.22,132.19,8.25479847]
[1765093710990,24.628864,132.22,132.2,0.69]
[1765093712292,16.308864,132.22,132.2,8.25429545]
[1765093712668,16.308864,132.22,132.21,0.69]
[1765093713285,16.308864,132.22,132.2,8.25429545]
[1765093714668,16.958864,132.22,132.2,8.25429545]
[1765093715788,16.958864,132.22,132.2,0.69]
[1765093716981,0.65,132.21,132.18,11.75271261]
[1765093717294,16.958864,132.22,132.18,11.75271261]
[1765093717492,16.958864,132.22,132.19,0.69]
[1765093719005,16.958864,132.22,132.19,8.25482597]
[1765093720807,16.958864,132.22,132.2,0.69]
[1765093722990,16.958864,132.22,132.19,7.56482597]
[1765093723189,16.308864,132.22,132.2,0.69]
[1765093724517,16.958864,132.22,132.2,0.69]
[1765093724806,16.308864,132.22,132.2,0.69]
[1765093725010,16.958864,132.22,132.2,0.69]
[1765093726417,16.308864,132.22,132.2,0.69]
[1765093726618,16.958864,132.22,132.2,0.69]
[1765093738336,0.65,132.22,132.2,0.69]
[1765093738829,24.58165551,132.23,132.2,0.69]
[1765093739217,0.71,132.22,132.2,0.69]
[1765093739827,23.87165551,132.23,132.2,0.69]
[1765093740129,0.71,132.22,132.2,0.69]
[1765093740427,8.27322082,132.22,132.19,7.56482597]
[1765093740655,11.81742421,132.21,132.16,0.66]
[1765093740935,11.81742421,132.21,132.16,11.7235585]
[1765093740936,3.49742421,132.2,132.16,11.7235585]
[1765093741142,4.20742421,132.2,132.16,11.7235585]
[1765093741306,0.71,132.19,132.17,0.66]
[1765093745213,0.71,132.19,132.17,8.22596173]
[1765093746513,0.71,132.2,132.17,11.72338594]
[1765093747223,19.38142562,132.21,132.18,4.15742421]
[1765093747224,9.03,132.21,132.18,4.15742421]
[1765093747909,8.32,132.21,132.18,4.15742421]
[1765093748173,9.03,132.21,132.18,11.72275539]
[1765093748348,0.71,132.2,132.18,11.72275539]
[1765093748548,9.03,132.21,132.18,11.72275539]
[1765093749767,8.32,132.21,132.19,0.66]
[1765093749956,0.71,132.22,132.19,0.66]
[1765093751455,0.71,132.22,132.19,8.22482928]
[1765093755050,16.308864,132.18,132.15,23.37780697]
[1765093755254,3.49742421,132.18,132.15,0.66]
[1765093755480,20.51628821,132.18,132.15,0.66]
[1765093755681,4.20742421,132.17,132.12,11.81742421]
[1765093755859,4.20742421,132.17,132.14,8.22753049]
[1765093756183,0.71,132.17,132.14,8.22753049]
[1765093756354,0.71,132.17,132.15,0.66]
[1765093757372,0.71,132.17,132.15,8.2271534]
[1765093758074,19.80628821,132.18,132.15,8.2271534]
[1765093758262,20.51628821,132.18,132.15,8.2271534]
[1765093758469,24.628864,132.19,132.16,0.66]
[1765093758653,25.338864,132.19,132.16,0.66]
[1765093758853,47.35183313,132.19,132.16,0.66]
[1765093759278,47.35183313,132.19,132.16,4.15742421]
[1765093759279,25.338864,132.19,132.16,4.15742421]
[1765093759583,25.338864,132.19,132.17,0.66]
[1765093760082,24.628864,132.19,132.17,4.15742421]
[1765093760380,0.71,132.2,132.18,0.66]
[1765093760768,156.07133409,132.21,132.18,0.66]
[1765093760982,137.15276927,132.21,132.18,0.66]
[1765093761190,144.71892881,132.21,132.18,0.66]
[1765093761395,144.05892881,132.21,132.18,0.66]
[1765093761587,0.66,132.2,132.18,0.66]
[1765093763505,144.05892881,132.21,132.18,0.66]
[1765093763714,144.71892881,132.21,132.18,0.66]
[1765093764986,16.308864,132.21,132.18,10.46399695]
[1765093765507,16.308864,132.21,132.19,0.66]
[1765093766410,22.71780697,132.22,132.19,2.89883458]
[1765093766591,2.23883458,132.23,132.19,0.66]
[1765093766936,2.89883458,132.22,132.18,8.22516237]
[1765093767117,10.46234472,132.22,132.19,0.66]
[1765093767414,0.66,132.21,132.19,0.66]
[1765093767994,7.56351014,132.22,132.19,0.66]
[1765093768194,10.46234472,132.22,132.19,0.66]
[1765093768390,8.22351014,132.22,132.19,0.66]
[1765093768912,16.54351014,132.22,132.19,0.66]
[1765093769519,16.308864,132.22,132.2,2.23883458]
[1765093770031,16.308864,132.22,132.21,0.66]
[1765093770197,16.308864,132.22,132.21,2.89883458]
[1765093770393,16.968864,132.22,132.19,0.66]
[1765093770594,16.968864,132.22,132.19,2.23883458]
[1765093770806,16.968864,132.22,132.2,0.66]
[1765093771832,16.308864,132.22,132.2,2.89883458]
[1765093772134,16.968864,132.22,132.2,2.89883458]
[1765093773221,16.308864,132.22,132.2,2.89883458]
[1765093774028,16.308864,132.22,132.21,0.66]
[1765093774199,16.308864,132.22,132.2,2.89883458]
[1765093775130,16.308864,132.22,132.21,0.66]
[1765093775728,16.308864,132.22,132.2,2.23883458]
[1765093775929,16.308864,132.22,132.21,2.23883458]
[1765093777332,16.308864,132.22,132.21,2.89883458]
[1765093777629,16.308864,132.22,132.21,0.66]
[1765093777817,16.308864,132.22,132.2,2.89883458]
[1765093779144,16.308864,132.22,132.2,2.23883458]
[1765093779445,16.308864,132.22,132.21,0.66]
[1765093782240,16.308864,132.22,132.21,2.89883458]
[1765093784048,24.73044724,132.25,132.21,10.46255895]
[1765093784347,16.308864,132.22,132.21,2.23883458]
[1765093784723,16.308864,132.22,132.21,2.89883458]
[1765093785858,16.308864,132.22,132.21,0.66]
[1765093786168,16.308864,132.22,132.21,2.89883458]
[1765093787877,16.308864,132.22,132.2,9.80290615]
[1765093788075,16.308864,132.22,132.2,10.46290615]
[1765093788587,16.308864,132.22,132.21,0.66]
[1765093789073,16.968864,132.22,132.2,2.89883458]
[1765093789277,16.308864,132.22,132.2,2.89883458]
[1765093790372,16.308864,132.22,132.21,0.7]
[1765093802253,16.988864,132.22,132.19,8.26483443]
[1765093802456,11.23883458,132.21,132.16,8.26637456]
[1765093802774,25.988864,132.21,132.17,0.7]
[1765093802955,0.68,132.2,132.17,2.93883458]
[1765093803357,0.68,132.2,132.18,0.7]
[1765093804073,16.308864,132.22,132.19,7.56486874]
[1765093804273,16.988864,132.22,132.19,7.56486874]
[1765093804572,16.308864,132.22,132.19,8.26486874]
[1765093804780,0.68,132.21,132.19,8.26486874]
[1765093805071,16.308864,132.22,132.19,8.26486874]
[1765093805378,16.988864,132.22,132.19,8.26486874]
[1765093806853,16.988864,132.22,132.19,10.50370332]
[1765093807391,16.988864,132.22,132.2,0.7]
[1765093810081,16.988864,132.22,132.2,2.93883458]
[1765093813986,16.988864,132.22,132.2,10.50310506]
[1765093815388,8.32,132.24,132.21,0.7]
[1765093815695,16.308864,132.22,132.2,2.93883458]
[1765093816281,16.308864,132.22,132.2,9.80309386]
[1765093816493,16.308864,132.22,132.21,2.93883458]
[1765093822583,16.308864,132.22,132.21,4.19605366]
[1765093825368,7.76165532,132.25,132.21,11.75977803]
[1765093825606,8.45165532,132.25,132.23,3.49605366]
[1765093826196,0.89,132.25,132.23,3.49605366]
[1765093826405,0.2,132.25,132.23,4.16605366]
[1765093826574,16.508864,132.25,132.23,4.16605366]
[1765093827283,16.508864,132.25,132.24,4.16605366]
[1765093827788,16.508864,132.25,132.24,3.49605366]
[1765093834199,0.2,132.25,132.24,4.16605366]
[1765093834999,0.2,132.25,132.24,11.72806212]
[1765093838677,0.2,132.25,132.24,20.02806212]
[1765093840902,0.2,132.25,132.24,36.53692612]
[1765093841109,0.2,132.25,132.24,20.02806212]
[1765093846716,0.2,132.25,132.24,23.05504006]
[1765093849416,0.2,132.25,132.24,31.86498498]
[1765093849612,0.2,132.28,132.25,8.80994492]
[1765093849806,0.2,132.28,132.27,3.49605366]
[1765093850011,0.2,132.28,132.27,11.79605366]
[1765093850314,0.2,132.28,132.27,12.46605366]
[1765093851115,0.2,132.28,132.27,20.02634699]
[1765093852894,0.2,132.28,132.27,16.53029333]
[1765093853215,0.2,132.28,132.27,20.02634699]
[1765093854220,0.2,132.28,132.27,28.83629191]
[1765093854595,0.2,132.28,132.27,31.86235386]
[1765093855994,0.2,132.28,132.27,19.55635528]
[1765093856190,0.2,132.28,132.27,23.05240894]
[1765093857719,0.2,132.28,132.27,19.55635528]
[1765093857924,0.87,132.28,132.27,14.08240894]
[1765093858117,0.87,132.28,132.27,15.86029333]
[1765093858307,0.87,132.28,132.27,19.35634699]
[1765093859018,0.2,132.28,132.27,19.35634699]
[1765093859727,0.92,132.28,132.27,19.35634699]
[1765093860031,0.92,132.28,132.26,0.72]
[1765093860032,0.92,132.28,132.26,7.56077844]
[1765093860193,0.72,132.27,132.26,11.0568321]
[1765093864647,0.92,132.28,132.26,11.0568321]
[1765093864939,0.92,132.28,132.27,3.49605366]
[1765093866038,0.2,132.28,132.27,20.03634699]
[1765093866834,0.2,132.28,132.27,16.54029333]
[1765093867148,0.92,132.28,132.27,11.05634699]
[1765093869257,0.2,132.28,132.27,11.05634699]
[1765093869435,0.2,132.28,132.27,20.03634699]
[1765093869837,0.2,132.28,132.27,19.35634699]
[1765093871251,0.2,132.28,132.27,20.03634699]
[1765093871851,0.92,132.28,132.26,11.05675024]
[1765093872640,0.92,132.28,132.27,11.05634699]
[1765093873344,0.2,132.28,132.27,20.03634699]
[1765093876257,0.2,132.29,132.28,8.80994492]
[1765093876455,0.2,132.29,132.28,16.48205224]
[1765093876838,0.2,132.29,132.28,12.98599858]
[1765093877343,0.2,132.29,132.28,12.49605366]
[1765093878132,0.2,132.29,132.28,21.30599858]
[1765093878457,0.2,132.29,132.28,28.86572038]
[1765093878827,1e-08,132.29,132.28,28.86572038]
[1765093879027,0.2,132.31,132.29,0.68]
[1765093879255,0.2,132.31,132.3,20.62599858]
[1765093879732,0.2,132.31,132.3,21.30599858]
[1765093880956,0.2,132.31,132.3,32.36063122]
[1765093881331,0.2,132.32,132.3,32.36063122]
[1765093881540,0.2,132.32,132.31,4.21605366]
[1765093882329,0.2,132.32,132.31,13.02599858]
[1765093883361,0.2,132.32,132.31,20.58400628]
[1765093884268,0.2,132.32,132.31,23.60915281]
[1765093884469,0.2,132.32,132.31,22.3458426]
[1765093884969,0.2,132.32,132.31,19.32069607]
[1765093885173,0.2,132.32,132.31,22.3458426]
[1765093885469,0.2,132.33,132.31,29.84476168]
[1765093885770,0.2,132.33,132.32,11.27274345]
[1765093886171,0.2,132.33,132.32,20.08268837]
[1765093886653,0.2,132.33,132.32,14.78760613]
[1765093886848,0.2,132.33,132.32,23.10760613]
[1765093887070,0.2,132.33,132.32,11.27274345]
[1765093888075,0.2,132.33,132.32,27.64012488]
[1765093888270,0.2,132.33,132.32,30.66504264]
[1765093890571,0.2,132.33,132.32,21.85509772]
[1765093890771,0.2,132.33,132.32,21.11509772]
[1765093891154,0.2,132.33,132.32,18.81017996]
[1765093891661,0.2,132.33,132.32,27.62012488]
[1765093891861,1e-08,132.33,132.32,27.62012488]
[1765093892162,1e-08,132.33,132.32,30.64504264]
[1765093892358,1e-08,132.34,132.33,8.80994492]
[1765093892556,1e-08,132.34,132.33,11.76268837]
[1765093893050,1e-08,132.34,132.33,14.78737739]
[1765093893774,1e-08,132.35,132.34,9.52994492]
[1765093893981,1e-08,132.35,132.34,20.06268837]
[1765093894285,1e-08,132.35,132.34,11.25274345]
[1765093895878,1e-08,132.35,132.34,9.78903784]
[1765093896082,1e-08,132.35,132.34,18.08903784]
[1765093896469,1e-08,132.35,132.34,18.80903784]
[1765093897385,0.70000001,132.35,132.34,7.55629439]
[1765093897952,0.70000001,132.35,132.31,16.308864]
[1765093897953,0.70000001,132.35,132.31,10.53274345]
[1765093898174,0.70000001,132.35,132.32,2.23274345]
[1765093899685,0.70000001,132.35,132.33,7.55686541]
[1765093900785,0.70000001,132.35,132.33,9.78960886]
[1765093901161,0.70000001,132.35,132.33,18.08960886]
[1765093904786,0.70000001,132.35,132.33,15.85686541]
[1765093906274,0.70000001,132.35,132.33,18.08960886]
[1765093906468,0.70000001,132.35,132.34,2.23274345]
[1765093906796,0.70000001,132.35,132.33,18.08960886]
[1765093909195,2.93274346,132.35,132.32,15.85727999]
[1765093909599,0.7,132.34,132.32,15.85727999]
[1765093911915,0.7,132.34,132.32,18.09002344]
[1765093914589,0.7,132.34,132.32,15.85727999]
[1765093914793,0.7,132.34,132.32,18.09002344]
[1765093916305,0.7,132.34,132.32,15.85727999]
[1765093916886,0.7,132.34,132.32,18.09002344]
[1765093917505,0.7,132.34,132.32,15.85727999]
[1765093918197,2.93274345,132.34,132.3,18.09132243]
[1765093918512,0.7,132.34,132.32,2.23274345]
[1765093919022,0.7,132.34,132.31,2.94274345]
[1765093919510,0.7,132.34,132.31,2.23274345]
[1765093919712,0.7,132.34,132.3,7.55857898]
[1765093919910,2.93274345,132.34,132.3,15.87857898]
[1765093920104,0.72,132.33,132.3,15.87857898]
[1765093923616,2.95274345,132.33,132.3,15.87857898]
[1765093923825,2.23274345,132.32,132.29,7.55892192]
[1765093924001,2.91274345,132.32,132.29,7.55892192]
[1765093924202,0.68,132.31,132.29,7.55892192]
[1765093927117,2.91274345,132.31,132.28,7.55950666]
[1765093927497,0.68,132.3,132.28,7.55950666]
[1765093930502,0.68,132.31,132.28,10.51225011]
[1765093931625,0.68,132.31,132.28,29.41155461]
[1765093933505,16.308864,132.32,132.29,11.27274345]
[1765093933907,0.68,132.33,132.3,0.72]